bitfinex-derivatives/quotes_ETHF0:USTF0_20250828
["timestamp","ask_amount","ask_price","bid_price","bid_amount"]
[1756341878993,2.603,4494.6,4494.5,1.9998]
[1756341879291,3.2078,4494.9,4494.5,1.9998]
[1756341879598,0.5698,4495.2,4494.6,3.13816196]
[1756341879793,0.6582,4494.7,4494.6,4.37126196]
[1756341880088,0.6582,4494.7,4494.6,4.75456196]
[1756341880393,0.6582,4494.7,4494.6,5.71876196]
[1756341880693,1.0447,4494.7,4494.6,5.71876196]
[1756341881091,0.5698,4494.9,4494.6,4.17376196]
[1756341881288,0.6582,4495.3,4495.2,0.9807]
[1756341881490,1.0447,4495.3,4495.2,2.5806]
[1756341881686,2.603,4495.8,4495.7,0.7718]
[1756341882193,2.603,4495.8,4495.7,1.9998]
[1756341882386,2.603,4495.8,4495.7,2.5806]
[1756341884493,2.603,4495.5,4495.4,2.5806]
[1756341885493,2.603,4495.5,4495.4,1.5999]
[1756341885694,2.603,4495.5,4495.4,0.7718]
[1756341885891,2.603,4495.5,4495.4,2.5806]
[1756341886194,0.6582,4495.5,4495.4,2.5806]
[1756341886585,0.5772,4495.9,4495.4,1.0356]
[1756341886893,2.603,4495.9,4495.8,2.5806]
[1756341888501,2.0258,4495.9,4495.8,2.5806]
[1756341888694,1.0447,4495.9,4495.8,5.71876196]
[1756341889303,1.0447,4495.9,4495.8,2.5806]
[1756341889489,2.0258,4495.9,4495.8,2.5806]
[1756341889694,2.603,4495.9,4495.8,2.5806]
[1756341890700,1.0447,4495.9,4495.8,2.5806]
[1756341890895,1.0447,4495.9,4495.6,3.13816196]
[1756341890896,1.5583,4496.3,4496.2,1.0356]
[1756341891096,2.603,4496.3,4496.2,2.5806]
[1756341891802,2.603,4496.3,4496.2,1.0356]
[1756341892004,2.603,4496.3,4496.2,2.5806]
[1756341892804,1.0447,4495.8,4495.7,1.3361]
[1756341893098,2.603,4495.8,4495.7,1.3361]
[1756341893299,2.603,4495.8,4495.7,1.5999]
[1756341893500,2.603,4495.8,4495.7,1.9998]
[1756341893700,2.603,4495.8,4495.7,2.5806]
[1756341893890,0.4113,4496.2,4495.7,2.5806]
[1756341894096,2.603,4495.8,4495.7,1.0356]
[1756341894494,2.0258,4495.4,4495.3,5.7884]
[1756341895396,2.0258,4495.4,4495.3,2.10454121]
[1756341895397,1.0447,4495.4,4495.3,2.10454121]
[1756341895597,0.9811,4496.0,4495.3,5.31234121]
[1756341895792,2.0258,4496.0,4495.9,3.64954121]
[1756341896304,2.603,4496.0,4495.9,0.7718]
[1756341896800,1.0447,4495.8,4495.7,1.3361]
[1756341897002,2.603,4495.8,4495.7,1.5999]
[1756341897201,2.603,4495.8,4495.7,1.9998]
[1756341897401,2.603,4495.8,4495.7,1.5999]
[1756341897602,2.603,4495.8,4495.7,0.7718]
[1756341898000,2.603,4495.8,4495.7,1.9998]
[1756341898306,2.603,4495.8,4495.7,2.5806]
[1756341900201,1.0447,4495.4,4495.3,3.2078]
[1756341900402,1.5583,4495.2,4494.6,0.9642]
[1756341900705,2.603,4494.7,4494.6,3.64954121]
[1756341900904,1.3634,4495.1,4495.0,2.0163]
[1756341901202,2.0258,4495.1,4495.0,3.64954121]
[1756341901408,0.6582,4495.1,4495.0,3.64954121]
[1756341901613,2.603,4495.8,4495.7,2.5283]
[1756341901904,0.6647,4495.9,4495.8,1.946]
[1756341902099,1.8967,4497.1,4497.0,1.2888]
[1756341902310,1.8967,4497.1,4495.7,5.06894121]
[1756341902311,1.8967,4497.0,4496.9,1.06894121]
[1756341902694,1.8967,4496.7,4496.6,1.3131]
[1756341902905,1.8967,4496.5,4496.4,3.2078]
[1756341903708,1.8967,4496.5,4496.4,5.056]
[1756341904002,0.3851,4496.5,4496.4,5.056]
[1756341904300,1.8967,4496.5,4496.4,3.2078]
[1756341904506,1.8967,4495.9,4495.8,2.38204121]
[1756341904704,1.1489,4496.6,4495.9,0.5594]
[1756341904898,1.8967,4496.4,4496.3,2.91714121]
[1756341905295,1.8967,4496.4,4496.3,1.3131]
[1756341905900,1.3332,4496.3,4496.2,0.7537]
[1756341906101,1.8967,4496.3,4496.2,1.8482]
[1756341906511,0.7478,4496.0,4495.9,1.8482]
[1756341906705,1.8967,4496.0,4495.9,1.8482]
[1756341906908,0.5854,4496.7,4496.0,1.0945]
[1756341907104,0.5854,4496.7,4495.6,3.2078]
[1756341907105,1.8967,4496.7,4496.6,0.7537]
[1756341907308,1.8967,4496.7,4496.6,1.8482]
[1756341907506,0.3851,4496.7,4496.6,1.8482]
[1756341907906,1.3113,4496.7,4496.6,1.8482]
[1756341909415,1.8967,4496.7,4496.6,1.8482]
[1756341909926,1.8967,4496.7,4496.1,0.5351]
[1756341910722,1.8967,4496.7,4496.0,0.5594]
[1756341911319,1.8967,4496.7,4495.9,0.5351]
[1756341911624,0.3851,4495.8,4495.7,8.17304258]
[1756341912121,21.066,4496.8,4495.7,7.07854258]
[1756341912324,1.1489,4496.6,4495.8,0.5351]
[1756341912528,1.8967,4496.6,4496.5,0.7537]
[1756341913623,1.8967,4496.6,4496.5,1.3131]
[1756341914124,1.8967,4496.6,4496.5,1.8482]
[1756341914331,1.8967,4497.3,4497.2,1.8482]
[1756341914629,0.01128045,4497.5,4497.2,1.15391]
[1756341914929,0.01128045,4497.5,4497.4,1.8482]
[1756341916026,0.01128045,4497.5,4497.4,2.03239344]
[1756341916632,1.8967,4498.8,4498.7,0.7537]
[1756341917224,1.8967,4498.8,4497.8,3.2078]
[1756341917225,0.7478,4497.9,4497.8,3.2078]
[1756341917431,0.3851,4497.3,4497.2,5.056]
[1756341917727,1.8967,4497.8,4497.7,1.8482]
[1756341918323,0.3851,4497.8,4497.7,4.96524258]
[1756341918630,1.8967,4498.2,4498.1,1.8482]
[1756341920338,1.8967,4498.2,4497.7,3.11704258]
[1756341920339,1.8967,4498.2,4497.7,3.67644258]
[1756341920535,1.3113,4497.9,4497.8,1.8482]
[1756341920831,0.5635,4498.3,4498.2,1.8482]
[1756341921035,0.9486,4498.5,4498.4,0.7537]
[1756341921233,0.3851,4498.5,4498.4,1.8482]
[1756341921631,1.3113,4498.5,4498.4,1.8482]
[1756341921829,1.8967,4498.5,4498.4,1.8482]
[1756341922027,1.1489,4498.9,4498.4,1.8482]
[1756341922338,1.8967,4498.9,4498.8,1.3131]
[1756341922632,1.8967,4498.9,4498.8,0.7537]
[1756341923226,1.8967,4498.9,4498.8,1.3131]
[1756341923428,5.1045,4498.9,4498.6,0.5351]
[1756341923628,1.8967,4498.7,4498.6,1.8482]
[1756341924735,3.2078,4498.9,4498.7,1.0945]
[1756341925029,3.5929,4498.9,4498.8,1.8482]
[1756341925431,3.2078,4498.9,4498.8,1.8482]
[1756341925634,0.5635,4499.2,4498.8,0.7537]
[1756341925834,0.9486,4499.2,4499.1,1.8482]
[1756341926032,1.8967,4499.2,4499.1,1.3131]
[1756341926231,32.029,4500.5,4499.6,1.8482]
[1756341926232,22.9347,4499.7,4499.6,1.8482]
[1756341926427,3.2078,4499.9,4499.6,1.8482]
[1756341926632,3.5929,4499.9,4499.8,1.8482]
[1756341927337,0.4851,4500.2,4500.1,1.8482]
[1756341927741,0.1,4500.2,4500.1,5.8482]
[1756341928236,21.7828,4500.9,4500.8,0.7537]
[1756341928428,22.9317,4500.9,4500.8,1.8482]
[1756341928829,22.9317,4500.9,4500.8,1.3131]
[1756341929329,0.3851,4500.9,4500.8,1.8482]
[1756341929639,22.9297,4501.3,4500.8,1.0945]
[1756341929838,0.3851,4500.8,4500.7,0.9269]
[1756341930037,0.3851,4500.8,4500.7,1.8482]
[1756341930341,1.1489,4501.2,4500.7,1.8482]
[1756341930537,0.5635,4501.4,4501.2,1.0945]
[1756341930741,0.9486,4501.4,4501.3,1.8482]
[1756341930934,0.3851,4501.4,4501.3,1.8482]
[1756341931128,3.2078,4501.5,4501.3,1.8482]
[1756341931334,0.5854,4501.9,4501.1,3.11045495]
[1756341931335,0.7478,4501.9,4501.8,0.3675]
[1756341931637,1.8967,4501.9,4501.8,1.8482]
[1756341932142,2.59,4501.9,4501.8,2.53475251]
[1756341932534,1.0274,4501.9,4501.8,2.53475251]
[1756341933338,0.6647,4501.9,4501.8,2.53475251]
[1756341933538,0.6647,4501.9,4501.5,3.11045495]
[1756341933539,1.0269,4502.3,4502.2,2.5771]
[1756341933739,4.4102,4502.5,4502.4,2.5771]
[1756341933931,3.2078,4502.5,4502.4,2.5771]
[1756341934134,2.5474,4502.9,4502.8,2.5771]
[1756341934340,2.5474,4502.9,4502.8,5.68755495]
[1756341934538,2.0008,4502.9,4502.8,5.68755495]
[1756341935238,1.5871,4502.9,4502.8,5.68755495]
[1756341935845,0.6422,4502.9,4502.8,5.68755495]
[1756341936034,2.5474,4503.6,4503.5,1.0303]
[1756341936239,2.5474,4503.6,4503.5,4.14075495]
[1756341936839,1.0269,4503.6,4503.3,0.4296]
[1756341937040,1.0269,4503.4,4503.3,1.1727]
[1756341937242,2.5474,4503.4,4503.3,0.7431]
[1756341937439,2.5474,4503.4,4503.3,1.5698]
[1756341937640,2.5474,4503.4,4503.3,2.5771]
[1756341939241,0.9739,4503.4,4503.3,2.5771]
[1756341939447,2.0008,4503.4,4503.3,2.5771]
[1756341940151,2.5474,4503.4,4503.3,2.5771]
[1756341940449,1.0269,4503.4,4502.9,3.2078]
[1756341940646,2.5474,4503.1,4503.0,1.7122]
[1756341940835,2.5474,4503.1,4503.0,0.7431]
[1756341941041,2.5474,4503.1,4503.0,1.9994]
[1756341941236,2.5474,4503.1,4503.0,2.5771]
[1756341941649,2.5474,4503.1,4503.0,1.9994]
[1756341942150,2.5474,4503.1,4503.0,1.5698]
[1756341942352,2.5474,4503.0,4502.9,3.2078]
[1756341942546,2.5474,4503.0,4502.9,4.7776]
[1756341942850,2.5474,4503.0,4502.9,3.2078]
[1756341943050,2.5474,4502.5,4502.4,3.2078]
[1756341943247,1.2024,4502.0,4501.9,3.2078]
[1756341943563,2.5474,4501.8,4501.7,1.2826]
[1756341943744,1.5205,4501.7,4501.5,3.11045495]
[1756341944045,2.5474,4501.6,4501.5,3.11045495]
[1756341944244,2.5474,4501.6,4501.5,3.85355495]
[1756341944446,2.5474,4501.6,4501.5,5.68755495]
[1756341944644,2.5474,4501.6,4501.5,3.11045495]
[1756341944846,1.0269,4501.6,4501.1,1.1172]
[1756341945047,1.0269,4501.0,4500.9,3.11045495]
[1756341945242,2.5474,4501.0,4500.9,5.68755495]
[1756341945953,2.5474,4501.0,4500.9,5.10985495]
[1756341946248,2.5474,4501.0,4500.9,0.7431]
[1756341946448,0.5602,4501.2,4499.9,1.5468]
[1756341946652,1.5205,4500.0,4499.8,3.7855]
[1756341946850,1.5871,4499.9,4499.8,5.7849]
[1756341947057,1.5205,4500.3,4499.8,5.7849]
[1756341947347,3.2078,4501.4,4500.9,1.5468]
[1756341947555,4.7949,4501.4,4501.3,2.5771]
[1756341947747,5.2086,4501.4,4501.3,5.68755495]
[1756341947948,5.7552,4501.4,4501.3,3.11045495]
[1756341948444,2.5474,4500.5,4500.4,0.3753]
[1756341948649,2.5474,4500.5,4500.4,0.2872]
[1756341948850,1.5871,4500.5,4500.4,2.5771]
[1756341949048,0.5602,4501.5,4500.9,1.0073]
[1756341949245,1.5871,4501.5,4501.4,2.5771]
[1756341949449,3.2078,4502.0,4501.2,3.11045495]
[1756341949649,1.5205,4501.9,4501.2,3.11045495]
[1756341949849,0.5602,4501.9,4501.3,1.5468]
[1756341950250,0.9603,4501.6,4501.2,3.11045495]
[1756341950449,3.2078,4502.0,4500.6,6.31825495]
[1756341950651,1.5205,4501.9,4501.3,1.5468]
[1756341950857,0.9603,4501.9,4501.8,0.9691]
[1756341951063,1.5205,4501.9,4501.8,0.9691]
[1756341951248,1.5205,4501.9,4501.2,4.65725495]
[1756341951559,0.5466,4501.4,4501.2,4.07955495]
[1756341951750,3.2078,4502.0,4501.2,3.11045495]
[1756341951957,3.768,4502.0,4501.9,1.5468]
[1756341952158,3.2078,4502.0,4501.9,1.5468]
[1756341952356,0.5602,4502.5,4501.8,6.71805495]
[1756341952557,0.5602,4502.5,4502.4,4.65725495]
[1756341952856,3.2078,4502.6,4502.5,1.5468]
[1756341953049,4.1817,4502.6,4502.5,0.9691]
[1756341953250,0.9739,4502.5,4501.9,3.54005495]
[1756341953457,0.9739,4502.3,4501.9,0.4296]
[1756341953753,1.1068,4502.4,4502.0,1.5468]
[1756341953957,0.9739,4502.5,4502.4,1.5468]
[1756341954459,1.5205,4502.5,4502.4,1.5468]
[1756341954759,1.5205,4502.5,4502.4,0.9691]
[1756341955057,3.2078,4502.6,4502.3,3.11045495]
[1756341955753,1.5205,4502.4,4502.3,3.11045495]
[1756341956458,1.5205,4502.4,4502.3,4.65725495]
[1756341957656,1.5205,4502.4,4502.3,4.07955495]
[1756341958054,1.5205,4502.3,4501.6,3.2078]
[1756341958253,0.5466,4502.4,4501.6,3.2078]
[1756341958452,1.5205,4502.5,4501.8,0.5777]
[1756341958654,22.5005,4502.4,4502.2,1.0073]
[1756341958863,23.5274,4502.4,4502.3,2.5771]
[1756341959565,23.5274,4502.4,4502.3,1.9994]
[1756341959764,2.5474,4502.4,4502.3,2.5771]
[1756341960059,3.2078,4502.6,4502.5,2.5771]
[1756341960359,1.5205,4502.5,4502.0,3.11045495]
[1756341960563,2.5474,4502.1,4502.0,5.10985495]
[1756341960862,0.7651,4502.1,4502.0,5.68755495]
[1756341961059,3.2078,4502.6,4502.5,2.5771]
[1756341961253,5.7552,4502.6,4501.8,1.5468]
[1756341961458,1.6068,4502.5,4502.4,1.9994]
[1756341961658,1.9872,4502.5,4502.4,2.5626]
[1756341961957,0.9313,4502.5,4502.4,2.5626]
[1756341962157,4.2234,4502.6,4502.5,2.5381]
[1756341962361,5.6981,4502.6,4502.5,1.0195]
[1756341962562,5.6981,4502.6,4502.5,0.2807]
[1756341962761,1.0156,4502.2,4502.0,3.11045495]
[1756341962964,2.4903,4502.1,4502.0,3.11045495]
[1756341963262,1.0156,4501.8,4501.7,0.9554]
[1756341963461,2.4903,4501.8,4501.7,1.9749]
[1756341963663,2.4903,4501.8,4501.7,1.0195]
[1756341964159,0.754,4501.8,4501.7,2.5381]
[1756341964363,3.2078,4502.1,4502.0,2.5381]
[1756341964657,0.9545,4502.8,4502.5,0.9861]
[1756341964863,3.2078,4502.7,4502.0,3.11045495]
[1756341965558,3.2078,4502.7,4502.6,4.62905495]
[1756341965764,1.4747,4502.9,4502.8,1.5186]
[1756341965962,3.2078,4503.0,4502.6,3.11045495]
[1756341966161,3.2078,4503.0,4502.7,0.5325]
[1756341966362,1.4747,4502.9,4502.7,1.5186]
[1756341966560,1.4747,4502.8,4502.7,1.5186]
[1756341966760,1.0797,4503.0,4502.8,0.9861]
[1756341966962,1.0797,4503.0,4502.9,1.5186]
[1756341967459,1.0797,4503.5,4502.8,0.5325]
[1756341967663,1.4747,4503.5,4503.4,1.5186]
[1756341968867,2.2287,4503.5,4503.4,2.5381]
[1756341969465,2.4903,4503.5,4503.4,2.5381]
[1756341970362,1.0797,4503.9,4503.4,2.5381]
[1756341970665,2.4903,4504.0,4503.9,0.3689]
[1756341970867,2.4903,4504.0,4503.9,2.5381]
[1756341971166,2.4903,4504.0,4503.4,0.5632]
[1756341971365,1.4747,4503.9,4503.3,1.5186]
[1756341971669,1.4747,4503.9,4503.2,3.11045495]
[1756341971670,2.4903,4503.9,4503.8,2.5381]
[1756341972056,1.5358,4503.9,4503.8,5.64855495]
[1756341972254,0.3872,4503.9,4503.8,5.64855495]
[1756341972460,0.9074,4504.2,4504.1,1.0195]
[1756341972667,1.2742,4504.2,4504.1,2.5381]
[1756341972974,3.7673,4505.1,4504.4,0.9554]
[1756341973267,3.7673,4505.1,4504.3,0.5632]
[1756341973268,3.2078,4505.1,4504.7,0.39955]
[1756341973468,3.2078,4505.1,4505.0,1.5186]
[1756341974268,0.5202,4505.5,4504.7,1.5186]
[1756341974658,1.4747,4505.5,4505.1,3.11045495]
[1756341975260,0.9545,4505.5,4505.2,1.5186]
[1756341975460,1.4747,4505.5,4505.2,1.5186]
[1756341975664,1.4747,4505.5,4505.1,3.11045495]
[1756341976066,3.2078,4505.6,4505.2,1.5186]
[1756341976265,3.9618,4505.6,4505.5,1.0195]
[1756341976572,4.482,4505.6,4505.5,2.5381]
[1756341976761,0.9545,4505.9,4505.5,2.5381]
[1756341976963,1.8619,4505.9,4505.8,2.5381]
[1756341977370,0.9074,4505.9,4505.8,2.5381]
[1756341977667,3.2078,4506.1,4505.9,1.0957]
[1756341977871,5.0415,4506.1,4506.0,1.8345]
[1756341978065,1.8337,4505.2,4504.9,0.5325]
[1756341978265,1.0797,4505.3,4503.8,3.11045495]
[1756341978570,0.5202,4504.2,4504.0,0.5325]
[1756341978866,1.0797,4504.3,4504.2,0.5325]
[1756341979072,0.5595,4504.1,4503.9,1.0957]
[1756341979268,1.0797,4503.9,4503.8,3.67365495]
[1756341979572,3.11045495,4506.5,4503.8,3.67365495]
[1756341979573,0.5202,4504.9,4504.1,0.5632]
[1756341979765,3.2078,4505.0,4504.7,1.0957]
[1756341979975,1.0797,4504.9,4504.8,1.0957]
[1756341980671,3.2078,4505.0,4504.6,3.11045495]
[1756341980874,0.5202,4504.7,4504.6,3.11045495]
[1756341981077,1.0797,4504.7,4504.6,3.11045495]
[1756341981283,1.0797,4504.7,4504.6,4.20615495]
[1756341981486,1.0797,4504.7,4504.6,3.11045495]
[1756341981776,3.2078,4505.0,4504.0,0.5325]
[1756341981777,1.0797,4504.9,4504.0,3.11045495]
[1756341981982,0.5595,4504.0,4503.4,3.64295495]
[1756341982183,0.5202,4503.9,4503.5,0.5632]
[1756341982379,3.2078,4504.3,4504.2,1.0957]
[1756341982685,0.5595,4504.2,4503.5,1.0957]
[1756341982882,0.5202,4504.1,4504.0,3.11045495]
[1756341983083,0.5202,4504.1,4504.0,4.20615495]
[1756341983779,0.5202,4504.9,4504.2,1.0957]
[1756341983979,3.2078,4505.0,4504.6,3.11045495]
[1756341984479,3.2078,4504.9,4504.8,1.0957]
[1756341984681,31.992,4507.1,4505.2,1.4952]
[1756341984682,3.2078,4505.5,4505.2,1.4952]
[1756341984880,3.2078,4505.5,4505.4,4.20615495]
[1756341986077,3.2078,4506.3,4505.5,1.0957]
[1756341986380,3.2078,4506.3,4505.9,0.5632]
[1756341986581,0.5595,4506.6,4506.2,4.20615495]
[1756341986778,1.0797,4506.6,4506.4,0.5632]
[1756341986979,3.2078,4506.8,4506.7,0.5325]
[1756341986980,3.728,4506.8,4506.7,0.5325]
[1756341987175,3.728,4506.8,4506.7,1.0957]
[1756341987577,0.5202,4507.6,4507.0,1.0957]
[1756341987883,0.5202,4507.6,4507.5,4.20615495]
[1756341988179,0.5202,4507.8,4507.5,3.11045495]
[1756341988375,0.5202,4507.8,4507.6,1.0957]
[1756341988576,0.5595,4507.9,4507.6,1.0957]
[1756341988779,0.5595,4507.9,4507.5,3.11045495]
[1756341988990,1.0797,4507.9,4507.5,3.11045495]
[1756341989486,1.0797,4508.4,4507.6,0.5632]
[1756341990492,1.0797,4508.2,4507.6,0.5632]
[1756341991690,1.0842,4508.3,4507.2,3.2078]
[1756341991885,3.2078,4508.6,4507.2,3.2078]
[1756341992094,12.46803001,4508.5,4507.3,0.5322]
[1756341992391,20.936,4508.4,4507.5,0.5322]
[1756341992593,1.0842,4508.3,4507.5,0.5322]
[1756341992897,22.0192,4508.3,4507.5,0.5322]
[1756341993087,1.0842,4508.3,4507.5,0.5322]
[1756341993392,13.2732,4508.3,4507.5,0.5322]
[1756341993891,1.0842,4508.2,4507.2,3.2078]
[1756341994085,1.0842,4508.1,4507.2,3.2078]
[1756341994287,0.5359,4507.9,4507.3,0.5322]
[1756341994591,20.932,4508.0,4507.3,0.5322]
[1756341994791,1.0842,4507.9,4507.3,0.5322]
[1756341995884,20.932,4508.0,4507.2,3.2078]
[1756341996389,1.0842,4507.9,4507.2,3.2078]
[1756341996596,1.0842,4507.9,4507.5,3.11045495]
[1756341996893,0.5359,4507.9,4507.8,1.06]
[1756341997191,1.0842,4507.9,4507.8,0.5322]
[1756341997391,35.1878,4508.9,4507.5,3.63825495]
[1756341997595,21.14982,4508.8,4507.5,4.17045495]
[1756341997783,1.0842,4508.6,4507.5,4.17045495]
[1756341998092,20.928,4508.7,4507.5,4.17045495]
[1756341998093,0.5483,4508.3,4507.6,1.06]
[1756341998300,0.5483,4508.3,4507.7,0.5322]
[1756341998487,22.0112,4508.3,4507.6,1.06]
[1756341998687,1.0842,4508.3,4507.6,1.06]
[1756341998991,1.0842,4508.3,4507.7,3.2078]
[1756341999496,0.5359,4508.4,4508.3,1.06]
[1756341999791,0.5359,4508.6,4508.2,3.2078]
[1756341999982,0.5359,4508.6,4508.3,1.06]
[1756342000182,0.5359,4508.6,4508.2,3.2078]
[1756342000390,52.904,4508.9,4508.3,0.5278]
[1756342000693,1.0842,4508.8,4508.2,1.06]
[1756342000991,22.0082,4508.8,4508.3,0.5322]
[1756342001191,1.0842,4508.8,4508.4,1.06]
[1756342001496,0.5359,4508.7,4508.4,1.06]
[1756342001893,0.5483,4508.9,4508.4,0.5278]
[1756342002085,0.5483,4508.9,4508.3,3.2078]
[1756342002086,3.2078,4509.5,4508.8,6.31825495]
[1756342002287,4.292,4509.5,4508.9,1.06]
[1756342002492,3.2078,4509.5,4508.9,1.06]
[1756342002697,1.0842,4509.4,4508.9,1.06]
[1756342002996,0.5359,4509.4,4508.9,0.5322]
[1756342003299,1.0842,4509.4,4508.8,7.37825495]
[1756342003790,1.8227,4508.9,4508.8,3.5756]
[1756342003994,1.8227,4508.2,4508.1,5.0068]
[1756342004390,1.8227,4508.2,4508.1,4.479]
[1756342005501,1.0842,4508.2,4508.1,3.2078]
[1756342007197,1.4807,4508.2,4508.1,4.155]
[1756342007396,1.4807,4508.2,4508.1,4.6828]
[1756342007597,1.4807,4508.2,4508.1,3.2078]
[1756342008497,4.22645412,4508.2,4507.5,3.2078]
[1756342008694,1.005,4507.6,4507.5,3.2078]
[1756342008892,1.005,4507.3,4507.2,4.0]
[1756342009095,2.4857,4507.3,4507.2,4.0]
[1756342009399,6.70756,4507.3,4507.2,4.0]
[1756342009597,6.70756,4507.3,4507.2,0.4390856]
[1756342009598,5.70256,4507.3,4507.2,0.4390856]
[1756342010597,6.21002597,4507.3,4507.2,0.4390856]
[1756342010797,38.16702597,4507.3,4507.2,0.4390856]
[1756342010997,59.07902597,4507.3,4507.2,0.4390856]
[1756342011299,58.85716597,4507.3,4507.2,0.4390856]
[1756342011495,59.07902597,4507.3,4507.2,0.4390856]
[1756342012394,33.94516597,4507.3,4507.2,0.4390856]
[1756342012694,54.85616597,4507.3,4507.2,0.4390856]
[1756342012899,54.85616597,4507.3,4507.2,0.9668856]
[1756342012900,33.40926597,4507.3,4507.2,0.9668856]
[1756342013098,53.8128,4507.3,4507.2,1.4990856]
[1756342013593,53.8128,4507.3,4507.2,0.9668856]
[1756342013800,53.8128,4507.3,4507.2,0.4390856]
[1756342014196,54.32138051,4507.3,4507.2,0.4390856]
[1756342014495,58.32238051,4507.3,4507.2,0.4390856]
[1756342015403,58.54424051,4507.3,4507.2,0.4390856]
[1756342016199,54.32138051,4507.3,4507.2,0.4390856]
[1756342016399,58.32138051,4507.3,4507.2,0.4390856]
[1756342017403,54.32138051,4507.3,4507.2,0.4390856]
[1756342019209,33.41038051,4507.3,4507.2,0.4390856]
[1756342019509,54.32238051,4507.3,4507.2,0.4390856]
[1756342019710,33.41038051,4507.3,4507.2,0.4390856]
[1756342020001,54.32138051,4507.3,4507.2,0.4390856]
[1756342020408,57.92488051,4507.3,4505.5,0.5278]
[1756342020711,0.2413,4505.7,4505.1,0.5278]
[1756342020903,3.2078,4505.3,4504.7,0.415]
[1756342021103,4.341,4505.2,4504.7,0.415]
[1756342021306,0.2413,4505.1,4504.8,0.5278]
[1756342021610,20.911,4505.0,4504.7,0.9428]
[1756342021909,21.17,4505.0,4504.6,3.2078]
[1756342022098,20.9119,4505.0,4504.7,0.9792]
[1756342022296,20.9119,4505.0,4504.7,0.552]
[1756342022496,3.4651,4505.3,4505.2,1.5338]
[1756342022497,3.2078,4505.3,4505.2,1.5338]
[1756342022709,24.1188,4505.3,4505.2,1.5338]
[1756342023109,24.377,4505.3,4505.2,1.1066]
[1756342023705,24.377,4505.3,4505.2,0.552]
[1756342025210,24.378,4505.3,4505.2,1.5338]
[1756342026008,3.2078,4505.3,4505.2,5.5338]
[1756342026210,20.911,4505.7,4505.6,0.9818]
[1756342026510,20.911,4505.7,4505.6,1.5338]
[1756342026706,3.2078,4505.9,4505.6,4.0]
[1756342026913,3.2078,4505.9,4505.7,5.5338]
[1756342027113,3.2078,4505.9,4505.8,1.5338]
[1756342027409,16.615,4505.9,4505.8,1.5338]
[1756342028714,3.2078,4505.9,4505.8,1.5338]
[1756342029013,24.1178,4505.9,4505.8,1.5338]
[1756342029214,24.1168,4505.9,4505.8,1.5338]
[1756342029411,3.2078,4507.0,4505.9,1.5338]
[1756342029608,3.2078,4507.0,4506.4,3.11045495]
[1756342029818,20.909,4506.9,4506.6,0.9792]
[1756342030017,20.909,4506.9,4506.4,3.11045495]
[1756342030018,20.909,4506.9,4506.5,0.4272]
[1756342030310,20.909,4506.9,4506.7,1.5338]
[1756342030516,20.909,4506.9,4506.5,0.552]
[1756342030916,20.909,4506.9,4506.7,0.552]
[1756342031117,20.909,4506.9,4506.3,3.2078]
[1756342031512,3.2078,4507.0,4506.4,1.5338]
[1756342031707,10.069,4506.9,4506.3,3.6072]
[1756342031908,10.069,4506.9,4506.4,0.9792]
[1756342032218,10.069,4506.9,4506.6,0.4272]
[1756342032417,19.823,4506.9,4506.8,0.9818]
[1756342032618,19.823,4506.9,4506.8,1.5338]
[1756342032815,3.2078,4507.5,4506.7,0.4272]
[1756342033016,10.07,4507.4,4507.3,0.9792]
[1756342033315,10.07,4507.4,4507.3,1.5338]
[1756342034618,3.2087,4508.0,4507.5,0.5546]
[1756342034816,20.903,4507.9,4507.8,0.5546]
[1756342035016,3.2078,4508.0,4507.9,1.5338]
[1756342035213,24.1108,4508.0,4507.9,1.5338]
[1756342035914,3.2078,4508.0,4507.9,1.5338]
[1756342036216,20.902,4508.0,4507.9,1.5338]
[1756342036722,20.902,4508.0,4507.9,5.5338]
[1756342038117,52.87663412,4508.2,4507.9,5.5338]
[1756342038421,52.87663412,4508.2,4508.1,1.5338]
[1756342038614,52.87663412,4508.2,4507.6,0.5546]
[1756342038921,0.2582,4507.8,4507.7,0.552]
[1756342039123,21.1562,4507.8,4507.7,0.552]
[1756342039417,21.1562,4507.8,4507.4,3.7598]
[1756342039717,20.898,4507.8,4507.4,3.7624]
[1756342039919,20.898,4507.8,4507.5,0.552]
[1756342040118,0.2582,4507.6,4507.5,0.552]
[1756342040817,0.2573,4507.0,4506.5,1.1066]
[1756342041016,20.8959,4506.9,4506.3,3.2078]
[1756342041318,20.895,4506.8,4506.4,0.3994]
[1756342041524,20.895,4506.9,4506.5,3.50983495]
[1756342041719,3.2078,4507.5,4506.9,1.5338]
[1756342042025,20.8949,4507.4,4506.8,3.2078]
[1756342042222,0.0009,4507.3,4507.0,0.9792]
[1756342042520,0.0159,4507.2,4506.9,0.552]
[1756342042921,0.2573,4506.9,4506.7,0.5546]
[1756342043124,3.2087,4507.5,4506.8,0.4272]
[1756342043319,24.1008,4507.5,4506.9,3.50980495]
[1756342043514,3.2078,4507.5,4507.4,1.5338]
[1756342043820,3.2087,4507.5,4507.4,1.5338]
[1756342044222,3.2078,4507.5,4507.4,1.5338]
[1756342044413,20.892,4508.1,4507.5,1.5338]
[1756342044617,20.8929,4508.1,4507.6,0.552]
[1756342044814,0.0009,4508.0,4507.7,0.9818]
[1756342045016,20.8929,4508.1,4507.6,0.9818]
[1756342045220,0.2582,4508.0,4507.4,1.5338]
[1756342045428,52.86763412,4508.2,4507.8,3.2078]